bitfinex/quotes_SOLUSD_20220130
["timestamp","ask_amount","ask_price","bid_price","bid_amount"]
[1643504901250,0.1,94.315,94.238,2.08862778]
[1643504901449,0.16054184,94.324,94.24,15.32]
[1643504901649,0.16054184,94.324,94.251,105.7]
[1643504901851,0.16054184,94.324,94.25,6.0]
[1643504901852,0.16054184,94.324,94.252,46.5399]
[1643504902048,0.16054184,94.324,94.262,6.0]
[1643504902449,0.16054184,94.324,94.263,0.25]
[1643504903250,0.16054184,94.324,94.262,6.0]
[1643504903950,0.16054184,94.324,94.253,0.2]
[1643504904550,6.0,94.323,94.253,0.45]
[1643504904952,6.25,94.322,94.253,0.45]
[1643504905150,6.35,94.322,94.253,0.45]
[1643504905354,6.25,94.322,94.253,0.45]
[1643504905751,0.25,94.322,94.253,0.45]
[1643504906050,0.16054184,94.324,94.262,6.0]
[1643504906254,0.16054184,94.324,94.253,0.45]
[1643504907058,6.0,94.322,94.253,0.45]
[1643504907453,0.25,94.321,94.253,0.45]
[1643504910276,0.16054184,94.324,94.253,0.45]
[1643504910478,6.0,94.322,94.253,0.45]
[1643504910677,15.917,94.32,94.253,0.45]
[1643504910878,0.35,94.319,94.241,0.45]
[1643504911079,38.9696986,94.309,94.241,0.25]
[1643504911278,0.25,94.308,94.239,0.25]
[1643504911478,6.0,94.299,94.239,0.25]
[1643504911878,0.25,94.298,94.239,0.25]
[1643504913777,0.25,94.308,94.239,0.25]
[1643504920886,0.25,94.308,94.24,6.0]
[1643504921087,6.0,94.299,94.24,6.0]
[1643504921288,0.25,94.298,94.241,0.25]
[1643504922288,0.25,94.298,94.239,0.25]
[1643504922489,0.25,94.308,94.239,0.25]
[1643504926892,6.0,94.299,94.229,0.2]
[1643504927093,6.0,94.299,94.102,12.38442676]
[1643504927094,1.42550506,94.294,94.221,0.2]
[1643504927293,1.42550506,94.279,94.172,1.47706422]
[1643504927496,105.7,94.269,94.172,1.47706422]
[1643504927694,1.42550506,94.263,94.156,1.47706422]
[1643504927896,15.32,94.25,94.156,1.47706422]
[1643504928096,14.44347364,94.239,94.142,1.47706422]
[1643504928300,105.7,94.229,94.141,1.47706422]
[1643504928496,111.7,94.229,94.141,1.47706422]
[1643504928700,0.25,94.228,94.131,1.47706422]
[1643504928995,0.25,94.228,94.105,48.66963139]
[1643504928996,6.0,94.22,94.125,1.47706422]
[1643504929196,6.0,94.22,94.106,0.2]
[1643504929197,15.936,94.21,94.121,1.47706422]
[1643504929397,0.25,94.209,94.121,1.47706422]
[1643504929598,6.0,94.2,94.12,1.47706422]
[1643504929799,105.95,94.199,94.12,1.47706422]
[1643504929998,6.0,94.189,94.117,1.47706422]
[1643504930200,6.0,94.189,94.106,0.2]
[1643504930400,0.25,94.188,94.115,6.0]
[1643504930699,14.69347364,94.188,94.115,6.0]
[1643504930908,14.69347364,94.188,94.116,0.25]
[1643504931100,14.69347364,94.188,94.115,0.25]
[1643504931502,14.44347364,94.188,94.124,6.0]
[1643504931906,14.44347364,94.188,94.125,105.95]
[1643504932103,14.44347364,94.188,94.135,6.0]
[1643504932306,0.25,94.187,94.125,0.2]
[1643504932503,0.25,94.187,94.102,5.2556845]
[1643504932504,6.0,94.178,94.126,6.0]
[1643504932904,14.44347364,94.188,94.126,6.0]
[1643504933104,14.44347364,94.188,94.128,2.14161056]
[1643504933507,14.44347364,94.188,94.138,6.0]
[1643504933703,0.25,94.187,94.138,6.0]
[1643504933905,14.44347364,94.188,94.139,6.0]
[1643504934104,0.25,94.187,94.139,0.45]
[1643504934306,0.25,94.187,94.139,0.25]
[1643504934928,14.44347364,94.188,94.139,0.25]
[1643504939333,0.25,94.187,94.139,0.25]
[1643504942835,14.44347364,94.188,94.139,0.25]
[1643504943236,14.44347364,94.188,94.14,2.08862778]
[1643504943434,15.934,94.22,94.14,2.08862778]
[1643504943637,157.53223058,94.302,94.15,6.0]
[1643504943638,53.096,94.27,94.15,6.0]
[1643504943844,47.3499,94.269,94.151,48.0066]
[1643504944037,15.32,94.27,94.161,6.0]
[1643504944237,154.7048913,94.302,94.161,6.0]
[1643504944238,154.7048913,94.302,94.17,15.32]
[1643504944436,36.1771127,94.301,94.172,0.5452172]
[1643504944636,36.1771127,94.301,94.181,111.7]
[1643504944836,36.1771127,94.301,94.192,1.7]
[1643504945036,36.1771127,94.301,94.202,6.0]
[1643504945237,36.1771127,94.301,94.21,15.32]
[1643504945436,36.1771127,94.301,94.211,106.4452172]
[1643504945637,36.1771127,94.301,94.221,6.0]
[1643504945936,36.1771127,94.301,94.222,0.25]
[1643504946140,36.1771127,94.301,94.224,6.0]
[1643504946342,36.1771127,94.301,94.231,1.94638992]
[1643504946539,36.1771127,94.301,94.241,6.0]
[1643504946939,36.1771127,94.301,94.242,0.25]
[1643504955946,36.1771127,94.301,94.244,6.0]
[1643504956351,36.1771127,94.301,94.245,0.25]
[1643504957350,36.1771127,94.301,94.245,0.45]
[1643504957551,36.1771127,94.301,94.255,0.74043784]
[1643504957951,36.1771127,94.301,94.255,6.25]
[1643504958152,36.1771127,94.301,94.255,6.45]
[1643504958352,36.1771127,94.301,94.255,6.25]
[1643504958552,36.1771127,94.301,94.255,0.25]
[1643504958752,36.1771127,94.301,94.265,6.0]
[1643504958952,36.1771127,94.301,94.255,0.45]
[1643504959156,36.1771127,94.301,94.255,0.25]
[1643504959553,36.1771127,94.301,94.26,6.0]
[1643504960054,36.1771127,94.301,94.261,0.25]
[1643504960254,36.1771127,94.301,94.255,0.25]
[1643504961662,36.1771127,94.301,94.261,6.0]
[1643504961859,36.1771127,94.301,94.262,0.25]
[1643504962060,0.25,94.3,94.245,0.2]
[1643504962261,0.25,94.3,94.043,95.77524741]
[1643504962262,0.25,94.3,94.223,0.2]
[1643504962460,0.25,94.3,94.185,15.6471]
[1643504962461,6.0,94.291,94.185,15.6471]
[1643504962660,6.0,94.29,94.186,0.2]
[1643504962861,6.25,94.29,94.186,2.74589628]
[1643504963160,8.95669142,94.289,94.186,2.74589628]
[1643504963361,0.25,94.288,94.196,6.0]
[1643504963761,17.23605954,94.286,94.173,0.2]
[1643504963961,105.7,94.285,94.173,0.2]
[1643504964163,6.0,94.276,94.172,0.2]
[1643504964362,0.25,94.275,94.129,1.47706422]
[1643504964565,191.46,94.27,94.115,48.4896]
[1643504964760,191.46,94.27,94.114,4.3100892]
[1643504964761,35.9771127,94.259,94.114,4.3100892]
[1643504964963,0.31574899,94.253,94.114,4.3100892]
[1643504965164,15.32,94.24,94.114,4.3100892]
[1643504965364,0.25,94.239,94.114,4.3100892]
[1643504965565,6.0,94.23,94.114,4.3100892]
[1643504965766,15.32,94.22,94.114,4.3100892]
[1643504965965,17.23605954,94.219,94.114,4.3100892]
[1643504966166,6.0,94.21,94.114,4.3100892]
[1643504966366,6.25,94.209,94.114,4.3100892]
[1643504966566,6.0,94.199,94.124,6.0]
[1643504966769,36.2271127,94.198,94.124,6.0]
[1643504966966,6.0,94.188,94.114,4.3100892]
[1643504967166,105.7,94.187,94.124,6.0]
[1643504967367,105.95,94.187,94.124,6.0]
[1643504968167,105.95,94.187,94.125,0.25]
[1643504968989,6.0,94.177,94.125,0.25]
[1643504969191,17.23605954,94.176,94.125,0.25]
[1643504969393,17.48605954,94.176,94.125,0.25]
[1643504969690,6.0,94.166,94.125,0.25]
[1643504970692,0.25,94.165,94.125,0.25]
[1643504972392,0.25,94.175,94.125,0.25]
[1643504973394,0.25,94.175,94.115,0.25]
[1643504975697,17.23605954,94.176,94.115,0.25]
[1643504975901,17.23605954,94.176,94.125,0.56032719]
[1643504976200,17.23605954,94.176,94.126,6.0]
[1643504976497,17.23605954,94.176,94.127,0.25]
[1643504976897,15.32,94.21,94.127,0.25]
[1643504977100,105.7,94.229,94.127,0.25]
[1643504977397,0.25,94.209,94.127,0.25]
[1643504977597,0.25,94.209,94.131,6.0]
[1643504977798,0.25,94.209,94.132,0.25]
[1643504977996,0.25,94.209,94.135,6.0]
[1643504978497,0.25,94.209,94.136,0.25]
[1643504978698,6.0,94.2,94.136,0.25]
[1643504978900,0.25,94.199,94.136,0.25]
[1643504979302,0.25,94.199,94.112,2.71834011]
[1643504979501,0.25,94.199,94.122,6.0]
[1643504979901,6.0,94.191,94.123,0.25]
[1643504980303,0.25,94.19,94.123,0.25]
[1643504980506,6.25,94.19,94.123,0.25]
[1643504981305,22.189,94.19,94.111,6.0]
[1643504981704,22.189,94.19,94.112,0.25]
[1643504981906,16.9333155,94.19,94.112,0.25]
[1643504982105,15.939,94.19,94.112,2.65606583]
[1643504982505,15.939,94.19,94.122,6.0]
[1643504982907,15.939,94.19,94.123,0.25]
[1643504983307,0.25,94.189,94.123,0.25]
[1643504983909,0.25,94.189,94.122,6.0]
[1643504984106,0.25,94.189,94.123,0.25]
[1643504986209,6.0,94.18,94.102,0.2]
[1643504986411,0.25,94.179,94.089,0.2]
[1643504986611,0.25,94.179,94.02,246.8637252]
[1643504986612,6.0,94.178,94.091,6.0]
[1643504986811,105.95,94.177,94.091,6.0]
[1643504987039,105.7,94.168,94.091,6.0]
[1643504987211,105.7,94.166,94.091,6.0]
[1643504987413,0.25,94.165,94.091,6.0]
[1643504987613,15.65772332,94.155,94.091,6.0]
[1643504987813,15.946,94.15,94.081,6.0]
[1643504988014,6.0,94.145,94.081,6.0]
[1643504988213,105.95,94.149,94.055,0.2]
[1643504988417,6.0,94.14,94.055,0.2]
[1643504988613,0.25,94.144,94.055,0.2]
[1643504988614,111.7,94.139,94.055,0.2]
[1643504988817,149.25544892,94.139,94.055,2.55379811]
[1643504989014,15.949,94.13,94.055,0.2]
[1643504989414,105.95,94.129,94.055,0.2]
[1643504989614,108.90669142,94.129,94.055,0.2]
[1643504989813,111.7,94.119,94.054,6.0]
[1643504990016,105.7,94.117,94.054,6.0]
[1643504990517,0.25,94.116,94.055,0.25]
[1643504991318,105.7,94.106,94.055,0.25]
[1643504991513,105.7,94.106,94.041,6.0]
[1643504991713,0.25,94.105,94.042,0.25]
[1643504992113,0.25,94.105,94.05,6.0]
[1643504992314,0.25,94.105,94.051,0.25]
[1643504993114,0.25,94.105,94.051,6.25]
[1643504993316,0.25,94.105,94.051,6.2]
[1643504993515,0.25,94.105,94.051,0.2]
[1643504993715,0.25,94.105,94.05,6.0]
[1643504994013,0.25,94.105,94.039,6.0]
[1643504994014,2.95669142,94.104,94.039,6.0]
[1643504994317,0.25,94.103,94.039,6.0]
[1643504994539,0.25,94.103,94.039,3.5]
[1643504994914,0.25,94.103,94.04,0.25]
[1643504995119,105.7,94.099,94.04,0.25]
[1643504995315,0.25,94.098,94.039,3.5]
[1643504996216,105.7,94.097,94.039,3.5]
[1643504996515,105.7,94.097,94.04,0.25]
[1643504996715,0.25,94.096,94.022,0.2]
[1643504996915,6.0,94.087,94.03,0.25]
[1643504997118,0.25,94.096,94.03,0.25]
[1643504997315,15.956,94.09,94.03,0.25]
[1643504997516,6.0,94.087,94.03,0.25]
[1643504997916,0.25,94.086,94.039,6.0]
[1643504998917,0.25,94.097,94.039,6.0]
[1643505000619,37.55544892,94.098,94.04,0.25]
[1643505000821,68.487,94.15,94.04,0.25]
[1643505001020,15.946,94.15,94.04,46.5731]
[1643505001221,15.946,94.15,94.041,2.28913957]
[1643505001421,15.946,94.15,94.05,6.0]
[1643505001621,15.946,94.15,94.051,6.0]
[1643505001821,43.69084117,94.149,94.052,25.67879071]
[1643505002042,43.69084117,94.149,94.053,105.9]
[1643505002244,0.25,94.148,94.062,6.0]
[1643505002443,0.25,94.148,94.063,6.0]
[1643505002946,0.25,94.148,94.064,0.25]
[1643505003144,0.25,94.148,94.072,6.0]
[1643505003444,0.25,94.148,94.077,1.8383485]
[1643505003644,43.69084117,94.149,94.087,6.0]
[1643505003843,43.69084117,94.149,94.088,0.25]
[1643505005246,15.941,94.18,94.088,0.25]
[1643505005449,15.941,94.18,94.089,2.08291627]
[1643505005649,15.941,94.18,94.099,6.0]
[1643505005847,15.941,94.18,94.1,0.25]
[1643505006147,23.6877,94.199,94.1,0.25]
[1643505006349,40.00055994,94.179,94.101,2.08291627]
[1643505006548,40.00055994,94.179,94.111,6.0]
[1643505006847,40.00055994,94.179,94.112,0.25]
[1643505008251,0.25,94.178,94.112,0.25]
[1643505008653,15.32,94.21,94.112,0.25]
[1643505008851,15.32,94.23,94.113,2.08291627]
[1643505009051,1.42550506,94.245,94.123,6.0]
[1643505009251,1.42550506,94.252,94.124,24.9137]
[1643505009451,1.42550506,94.26,94.13,15.32]
[1643505009652,37.61863208,94.23,94.135,105.7]
[1643505009853,37.61863208,94.23,94.141,0.86141116]
[1643505010051,37.61863208,94.23,94.16,15.926]
[1643505010253,37.61863208,94.23,94.161,2.4754166]
[1643505010456,31.247,94.26,94.17,6.0]
[1643505010658,1.42550506,94.27,94.172,105.7]
[1643505010954,1.42550506,94.284,94.173,0.45]
[1643505011155,1.42550506,94.294,94.182,6.0]
[1643505011456,39.50445326,94.293,94.185,0.86141116]
[1643505011656,39.50445326,94.293,94.185,1.06141116]
[1643505011854,39.50445326,94.293,94.201,2.2754166]
[1643505012054,39.50445326,94.293,94.211,6.0]
[1643505012255,39.50445326,94.293,94.212,0.25]
[1643505012455,39.50445326,94.293,94.22,15.915]
[1643505012655,0.1,94.316,94.23,6.0]
[1643505012855,0.16054184,94.324,94.231,0.25]
[1643505013056,0.16054184,94.324,94.231,8.33291627]
[1643505013459,0.16054184,94.324,94.232,2.08291627]
[1643505013657,0.16054184,94.324,94.243,2.2754166]
[1643505013857,0.16054184,94.324,94.244,48.2708]
[1643505014056,0.16054184,94.324,94.254,6.0]
[1643505014259,0.16054184,94.324,94.255,0.25]
[1643505014662,0.16054184,94.324,94.255,8.33291627]
[1643505014861,0.16054184,94.324,94.256,2.08291627]
[1643505015061,0.16054184,94.324,94.266,6.0]
[1643505015262,0.16054184,94.324,94.267,1.11141116]
[1643505015462,0.16054184,94.324,94.267,3.18966358]
[1643505015663,0.16054184,94.324,94.277,6.0]
[1643505015964,0.16054184,94.324,94.278,0.25]
[1643505016962,0.16054184,94.324,94.245,0.2]
[1643505017164,0.16054184,94.324,94.254,6.0]
[1643505017365,15.917,94.32,94.243,6.0]
[1643505017568,6.0,94.31,94.234,0.2]
[1643505017766,16.47914873,94.309,94.221,3.00490936]
[1643505018168,6.0,94.299,94.221,3.00490936]
[1643505018767,6.0,94.299,94.222,0.25]
[1643505018971,6.0,94.299,94.231,6.0]
[1643505019370,6.0,94.299,94.232,0.25]
[1643505019568,6.0,94.299,94.221,0.2]
[1643505019771,15.922,94.29,94.211,0.2]
[1643505019968,15.922,94.29,94.191,0.2]
[1643505020169,6.0,94.28,94.189,0.2]
[1643505020370,0.25,94.279,94.189,0.2]
[1643505020570,45.94071493,94.279,94.201,2.77950601]
[1643505021097,45.94071493,94.279,94.189,0.2]
[1643505021098,45.94071493,94.279,94.221,0.25]
[1643505021295,15.926,94.27,94.189,0.2]
[1643505021498,15.32,94.26,94.189,0.2]
[1643505021701,15.32,94.26,94.092,1.7]
[1643505021702,21.32,94.26,94.16,0.2]
[1643505021898,0.25,94.259,94.111,72.4915]
[1643505022102,9.20669142,94.259,94.121,6.0]
[1643505022396,105.7,94.249,94.122,7.21142261]
[1643505022601,6.0,94.239,94.132,6.0]
[1643505022797,15.935,94.22,94.133,0.25]
[1643505022998,120.86458682,94.219,94.133,0.25]
[1643505023197,121.11458682,94.219,94.132,6.0]
[1643505023398,121.11458682,94.219,94.123,0.2]
[1643505023606,6.0,94.209,94.112,0.2]
[1643505023798,15.32,94.2,94.086,2.07175847]
[1643505023998,6.0,94.19,94.096,6.0]
[1643505024199,15.32,94.18,94.096,6.0]
[1643505024499,0.25,94.179,94.097,6.44282991]
[1643505024698,0.25,94.179,94.097,6.64282991]
[1643505024898,15.16458682,94.169,94.097,6.44282991]
[1643505025300,0.25,94.168,94.097,6.44282991]
[1643505025499,0.25,94.168,94.098,0.25]
[1643505025901,6.0,94.159,94.098,0.25]
[1643505026304,0.25,94.158,94.097,6.44282991]
[1643505027305,0.25,94.168,94.097,6.44282991]
[1643505027504,0.25,94.168,94.098,0.25]
[1643505028003,0.25,94.168,94.107,6.0]
[1643505028204,15.32,94.2,94.108,0.25]
[1643505028607,0.25,94.199,94.109,6.0]
[1643505028804,0.25,94.199,94.11,0.25]
[1643505029004,0.25,94.199,94.11,2.32175847]
[1643505029206,45.93385729,94.199,94.119,1.00408705]
[1643505029405,6.0,94.19,94.12,6.25]
[1643505029603,6.0,94.189,94.12,0.25]
[1643505029803,6.0,94.189,94.13,6.0]
[1643505030005,0.25,94.188,94.13,6.0]
[1643505030203,0.25,94.188,94.131,0.25]
[1643505030406,0.25,94.188,94.13,0.25]
[1643505030806,45.68385729,94.199,94.13,0.25]
[1643505032206,45.43385729,94.199,94.13,0.25]
[1643505034410,0.25,94.198,94.13,2.32175847]
[1643505034608,0.25,94.198,94.141,6.63067015]
[1643505034810,15.934,94.22,94.142,0.25]
[1643505035008,31.254,94.22,94.151,6.0]
[1643505035211,0.25,94.219,94.151,6.0]
[1643505035409,31.254,94.22,94.152,0.25]
[1643505035609,31.251,94.24,94.152,0.25]
[1643505035808,42.16176573,94.219,94.152,0.25]
[1643505036611,42.16176573,94.219,94.188,2.9837081]
[1643505036811,0.25,94.218,94.188,2.9837081]
[1643505037612,42.16176573,94.219,94.188,2.9837081]
[1643505037812,0.25,94.218,94.188,2.9837081]
[1643505040122,0.25,94.218,94.135,7.53503692]
[1643505040519,15.936,94.21,94.145,6.0]
[1643505040718,0.25,94.218,94.145,6.0]
[1643505041118,42.16176573,94.219,94.146,0.25]
[1643505041318,0.25,94.218,94.146,0.25]
[1643505041918,42.16176573,94.219,94.146,0.25]
[1643505042119,42.16176573,94.219,94.147,2.07161788]
[1643505042317,40.32341723,94.219,94.148,0.25]
[1643505042523,40.32341723,94.219,94.158,4.98393664]
[1643505042920,40.32341723,94.219,94.168,6.0]
[1643505043324,40.32341723,94.219,94.169,0.25]
[1643505047526,6.0,94.209,94.169,0.25]
[1643505047728,6.0,94.208,94.148,0.25]
[1643505047925,6.25,94.208,94.143,6.0]
[1643505048126,6.25,94.208,94.133,6.0]
[1643505048529,6.25,94.208,94.137,6.0]
[1643505049425,6.25,94.208,94.138,0.25]
[1643505050025,0.25,94.208,94.138,0.25]
[1643505050227,3.25760921,94.197,94.128,0.45]
[1643505050630,3.25760921,94.197,94.133,6.0]
[1643505050827,0.25,94.196,94.133,6.0]
[1643505051028,15.939,94.19,94.122,0.2]
[1643505051229,105.7,94.189,94.122,0.2]
[1643505051527,105.95,94.189,94.108,6.0]
[1643505051927,105.95,94.189,94.109,6.0]
[1643505052128,105.95,94.189,94.109,6.2]
[1643505052330,105.95,94.189,94.11,0.25]
[1643505053732,105.95,94.189,94.1,23.6105]
[1643505054030,6.0,94.179,94.101,0.2]
[1643505054233,6.0,94.179,94.088,1.47706422]
[1643505054430,6.0,94.17,94.098,6.0]
[1643505054655,6.0,94.168,94.094,6.0]
[1643505054854,40.57341723,94.167,94.094,6.0]
[1643505055054,6.0,94.157,94.091,6.0]
[1643505055357,6.0,94.157,94.072,0.2]
[1643505055358,3.25760921,94.149,94.081,6.0]
[1643505055559,3.25760921,94.149,94.072,0.2]
[1643505055754,0.25,94.148,94.072,0.2]
[1643505056957,0.25,94.148,94.072,0.45]
[1643505057155,105.7,94.139,94.072,0.45]
[1643505057357,0.25,94.138,94.072,0.45]
[1643505058258,0.25,94.138,94.074,6.0]
[1643505058957,0.25,94.138,94.075,0.25]
[1643505059461,3.25760921,94.149,94.075,0.25]
[1643505059659,3.25760921,94.149,94.076,2.07303189]
[1643505059860,3.25760921,94.149,94.081,112.9]
[1643505060057,3.25760921,94.149,94.091,6.0]
[1643505060460,3.25760921,94.149,94.097,6.0]
[1643505060859,3.25760921,94.149,94.098,0.25]
[1643505062263,2.75760921,94.149,94.098,0.25]
[1643505063564,15.942,94.17,94.098,0.25]
[1643505063763,105.7,94.189,94.098,0.25]
[1643505063764,0.25,94.169,94.098,0.25]
[1643505063966,0.25,94.169,94.098,49.1981]
[1643505064168,0.25,94.169,94.099,0.2]
[1643505064365,0.25,94.169,94.108,6.0]
[1643505064566,0.25,94.169,94.098,0.25]
[1643505064567,0.25,94.169,94.098,0.45]
[1643505064766,0.25,94.187,94.098,0.25]
[1643505065266,36.44849597,94.188,94.098,0.25]
[1643505065468,36.44849597,94.188,94.099,2.07303189]
[1643505065969,15.941,94.18,94.11,9.82032068]
[1643505066166,15.941,94.18,94.11,10.02032068]
[1643505066368,15.941,94.18,94.12,6.0]
[1643505066568,0.25,94.179,94.12,6.0]
[1643505066769,36.44849597,94.188,94.121,0.25]
[1643505067469,15.94,94.19,94.121,105.95]
[1643505067771,1.42550506,94.226,94.131,105.7]
[1643505068069,1.42550506,94.256,94.141,105.7]
[1643505068269,1.42550506,94.263,94.151,105.7]
[1643505068470,42.26930954,94.226,94.152,3.39865288]
[1643505068768,42.26930954,94.226,94.162,105.7]
[1643505068968,42.26930954,94.226,94.163,0.2]
[1643505069169,42.26930954,94.226,94.163,0.45]
[1643505069369,42.26930954,94.226,94.171,9.65683569]
[1643505069568,42.26930954,94.226,94.181,6.0]
[1643505069771,42.26930954,94.226,94.182,0.25]
[1643505069972,15.926,94.27,94.182,0.25]
[1643505070369,6.0,94.26,94.182,6.25]
[1643505070569,6.0,94.26,94.192,6.0]
[1643505070771,1.42550506,94.279,94.193,0.25]
[1643505070975,2.82733928,94.323,94.193,3.61213787]
[1643505071171,74.54286868,94.317,94.203,6.0]
[1643505071373,1.42276138,94.32,94.21,206.78]
[1643505071571,0.16054184,94.324,94.21,206.78]
[1643505071572,0.32108368,94.324,94.262,1.7]
[1643505071772,1.42276138,94.353,94.27,15.32]
[1643505071973,2.82733928,94.437,94.28,15.9]
[1643505072176,117.13508565,94.463,94.29,15.32]
[1643505072177,164.66355648,94.405,94.29,15.32]
[1643505072378,2.82733928,94.458,94.3,191.46]
[1643505072572,2.82733928,94.473,94.31,206.78]
[1643505072772,2.82733928,94.473,94.322,1.7]
[1643505072975,44.18280808,94.454,94.33,15.32]
[1643505073172,96.8042,94.501,94.35,191.46]
[1643505073373,72.1849,94.501,94.362,1.7]
[1643505073573,0.04201754,94.502,94.372,6.0]
[1643505073776,0.04201754,94.502,94.41,191.46]
[1643505073973,0.04201754,94.502,94.42,15.32]
[1643505074175,0.04201754,94.502,94.421,0.2]
[1643505074376,0.04201754,94.502,94.421,2.52303189]
[1643505074579,0.04201754,94.502,94.45,15.874]
[1643505074778,0.04201754,94.502,94.451,0.45]
[1643505074979,0.04201754,94.502,94.46,21.32]
[1643505075177,0.04201754,94.502,94.431,6.0]
[1643505075178,0.04201754,94.502,94.461,0.2]
[1643505075376,0.04201754,94.502,94.43,15.32]
[1643505075576,0.04201754,94.502,94.44,6.0]
[1643505075776,0.04201754,94.502,94.441,0.25]
[1643505076175,0.04201754,94.502,94.441,0.45]
[1643505076777,0.04201754,94.502,94.442,2.06900106]
[1643505077279,0.18468472,94.514,94.46,15.874]
[1643505077479,0.18468472,94.514,94.47,12.73]
[1643505077679,0.18468472,94.514,94.471,0.2]
[1643505078479,0.36936944,94.514,94.471,0.45]
[1643505080084,0.36936944,94.514,94.45,6.0]
[1643505080680,15.75036944,94.53,94.45,6.0]
[1643505081083,2.95669142,94.529,94.45,6.0]
[1643505081285,40.0,94.528,94.44,6.0]
[1643505081584,40.0,94.528,94.396,23.9186]
[1643505081585,45.89361086,94.518,94.39,12.73]
[1643505081785,0.30428994,94.503,94.39,12.73]
[1643505081984,12.73,94.51,94.36,12.73]
[1643505082184,13.58234291,94.502,94.36,12.73]
[1643505082385,38.92034056,94.501,94.36,12.73]
[1643505082587,52.50268347,94.501,94.36,12.73]
[1643505082785,6.0,94.491,94.37,6.0]
[1643505082985,15.891,94.49,94.37,18.73]
[1643505083196,19.09769142,94.49,94.371,0.25]
[1643505083586,2.95669142,94.489,94.37,18.73]
[1643505083787,0.25,94.488,94.37,18.73]
[1643505084186,2.95669142,94.487,94.37,18.73]
[1643505084386,15.89,94.48,94.37,34.619]
[1643505084587,15.89,94.48,94.371,2.06435448]
[1643505084786,0.25,94.479,94.371,2.06435448]
[1643505084987,44.59550472,94.469,94.381,6.0]
[1643505085388,0.25,94.468,94.381,6.0]
[1643505085690,0.25,94.468,94.39,6.0]
[1643505085888,6.0,94.459,94.39,6.0]
[1643505086089,6.0,94.459,94.381,0.25]
[1643505086289,0.25,94.458,94.37,0.25]
[1643505086489,44.59550472,94.469,94.37,12.98]
[1643505086692,44.59550472,94.469,94.371,2.26435448]
[1643505086889,0.25,94.468,94.38,6.0]
[1643505087089,0.25,94.468,94.381,6.0]
[1643505087289,0.25,94.468,94.381,6.25]
[1643505087489,0.25,94.468,94.39,6.0]
[1643505087890,0.25,94.468,94.391,6.25]
[1643505088090,0.25,94.468,94.401,6.0]
[1643505088309,0.25,94.468,94.402,0.25]
[1643505089911,6.0,94.459,94.371,0.2]
[1643505090317,0.25,94.458,94.371,0.2]
[1643505090514,35.45089757,94.449,94.341,0.2]
[1643505090714,105.7,94.448,94.331,0.2]
[1643505090913,6.0,94.439,94.311,0.2]